bitfinex/quotes_SOLUSD_20250130
["timestamp","ask_amount","ask_price","bid_price","bid_amount"]
[1738213328342,0.12549,241.48,241.41,12.37800734]
[1738213330331,12.37800734,241.46,241.38,12.37800734]
[1738213331071,0.12549,241.46,241.39,12.37800734]
[1738213332641,83.0,241.44,241.39,12.37800734]
[1738213333463,83.0,241.44,241.34,1.0]
[1738213333464,83.0,241.44,241.41,12.37800734]
[1738213333761,83.0,241.44,241.43,12.37800734]
[1738213334837,95.40800734,241.49,241.42,12.37800734]
[1738213335161,83.03,241.49,241.43,12.37800734]
[1738213335534,83.03,241.49,241.44,12.37800734]
[1738213335741,0.08028421,241.45,241.44,12.37800734]
[1738213340658,0.08028421,241.45,241.42,12.37800734]
[1738213340859,0.08028421,241.45,241.33,0.063]
[1738213340860,0.08028421,241.45,241.4,12.37800734]
[1738213341343,12.45829155,241.45,241.38,12.37800734]
[1738213341959,12.45829155,241.45,241.39,12.37800734]
[1738213342161,0.08028421,241.45,241.39,12.37800734]
[1738213343356,12.45829155,241.45,241.38,12.37800734]
[1738213343858,12.45829155,241.45,241.39,12.37800734]
[1738213344062,0.08028421,241.45,241.39,12.37800734]
[1738213344637,0.08028421,241.45,241.41,12.37800734]
[1738213344853,0.08028421,241.45,241.42,12.37800734]
[1738213350975,0.08028421,241.45,241.43,12.37800734]
[1738213351179,0.08028421,241.45,241.44,12.37800734]
[1738213351764,0.08028421,241.45,241.43,12.37800734]
[1738213352854,0.08028421,241.45,241.41,12.37800734]
[1738213353054,0.08028421,241.45,241.38,0.063]
[1738213353055,12.58378155,241.45,241.38,0.063]
[1738213353262,12.37800734,241.43,241.38,0.063]
[1738213354474,0.08028421,241.45,241.39,12.37800734]
[1738213354764,0.08028421,241.45,241.43,12.37800734]
[1738213354976,0.08028421,241.45,241.38,0.063]
[1738213354977,0.08028421,241.45,241.44,12.37800734]
[1738213355156,12.58378155,241.45,241.38,0.063]
[1738213355358,12.37800734,241.4,241.38,0.063]
[1738213355767,0.07775554,241.39,241.38,0.063]
[1738213359383,12.58125288,241.39,241.38,0.063]
[1738213361977,0.07775554,241.39,241.38,0.063]
[1738213362779,12.58125288,241.39,241.38,0.063]
[1738213366500,12.83223288,241.39,241.38,0.063]
[1738213367775,36.60911688,241.39,241.38,0.063]
[1738213367977,0.37647,241.34,241.33,0.063]
[1738213368181,48.90936868,241.34,241.33,0.063]
[1738213368581,36.53136134,241.34,241.33,0.063]
[1738213369672,37.53136134,241.34,241.33,0.063]
[1738213370090,41.67486134,241.34,241.33,0.063]
[1738213373664,54.05286868,241.34,241.33,0.063]
[1738213373870,54.05286868,241.34,241.33,0.0001]
[1738213374773,41.67486134,241.34,241.33,0.0001]
[1738213375288,43.30956612,241.34,241.33,0.0001]
[1738213375585,55.77583762,241.34,241.33,0.0001]
[1738213378292,68.15384462,241.34,241.33,0.0001]
[1738213379690,0.37647,241.26,241.24,0.063]
[1738213379890,12.75447734,241.25,241.24,0.063]
[1738213380792,12.37800734,241.27,241.24,0.063]
[1738213380997,12.37800734,241.28,241.24,0.063]
[1738213381872,12.37800734,241.27,241.24,0.063]
[1738213383618,0.37647,241.26,241.24,0.063]
[1738213383808,12.62898734,241.25,241.24,0.063]
[1738213383975,12.75447734,241.25,241.24,0.063]
[1738213384391,36.53136134,241.25,241.24,0.063]
[1738213384590,32.08281071,241.25,241.24,0.063]
[1738213384919,0.12549,241.2,241.15,0.063]
[1738213385103,7.92945671,241.16,241.15,0.063]
[1738213385409,8.05494671,241.16,241.15,0.063]
[1738213385581,8.30592671,241.16,241.15,0.063]
[1738213385779,33.20830071,241.16,241.15,0.063]
[1738213386087,0.12549,241.1,241.08,0.063]
[1738213386295,32.20830071,241.1,241.08,0.063]
[1738213386608,25.278844,241.09,241.08,0.063]
[1738213386806,0.12549,241.08,241.07,0.063]
[1738213387099,49.09617484,241.08,241.07,0.063]
[1738213387308,45.278844,241.06,241.02,0.03]
[1738213387510,40.83630942,241.03,241.02,0.03]
[1738213387806,12.78513542,241.03,241.02,0.03]
[1738213388488,16.93393542,241.03,241.02,0.03]
[1738213388688,12.78513542,241.03,241.02,0.03]
[1738213389308,12.40866542,241.06,241.02,0.03]
[1738213389511,12.40866542,241.09,241.02,12.43866542]
[1738213389714,12.40866542,241.1,241.02,12.43866542]
[1738213389895,12.40866542,241.09,241.02,12.43866542]
[1738213390101,12.40866542,241.1,241.02,12.43866542]
[1738213390613,0.12549,241.09,241.02,12.43866542]
[1738213391312,12.53415542,241.06,241.02,0.03]
[1738213391613,0.12549,241.04,241.02,0.03]
[1738213391912,0.12549,241.06,240.96,12.40866542]
[1738213391913,12.53415542,241.03,240.96,12.40866542]
[1738213392620,12.40866542,241.0,240.93,12.40866542]
[1738213392817,12.40866542,241.0,240.92,12.43866542]
[1738213392995,95.53415542,240.99,240.92,12.43866542]
[1738213393194,83.0,240.98,240.92,12.43866542]
[1738213393698,83.0,240.98,240.95,12.40866542]
[1738213395516,83.0,240.98,240.94,12.40866542]
[1738213395724,0.08862091,240.96,240.94,12.40866542]
[1738213397119,0.08862091,240.96,240.95,12.40866542]
[1738213397518,0.08862091,240.96,240.93,12.40866542]
[1738213397719,0.08862091,240.96,240.92,0.03]
[1738213398816,12.49728633,240.96,240.92,0.03]
[1738213399315,12.40866542,240.93,240.92,0.03]
[1738213400320,12.40866542,240.94,240.92,0.03]
[1738213401031,87.27579,240.95,240.92,0.03]
[1738213401032,12.65964542,240.93,240.92,0.03]
[1738213401317,12.78513542,240.93,240.92,0.03]
[1738213402925,20.37647,240.9,240.89,0.02782543]
[1738213403135,32.78513542,240.9,240.89,0.02782543]
[1738213403919,36.93623542,240.9,240.81,12.40866542]
[1738213404121,36.93623542,240.9,240.78,1.6376]
[1738213404122,12.40866542,240.87,240.8,12.40866542]
[1738213404420,12.40866542,240.85,240.78,14.04626542]
[1738213404625,0.12549,240.84,240.78,14.04626542]
[1738213404926,0.12549,240.84,240.78,12.40866542]
[1738213405127,0.12549,240.85,240.78,12.40866542]
[1738213405317,0.12549,240.85,240.79,12.40866542]
[1738213406220,83.0,240.86,240.81,12.40866542]
[1738213406527,83.0,240.86,240.82,12.40866542]
[1738213406704,83.0,240.86,240.84,12.40866542]
[1738213406899,83.0,240.91,240.84,12.40866542]
[1738213407106,0.12549,240.88,240.82,12.40866542]
[1738213408019,0.12549,240.87,240.81,12.40866542]
[1738213408325,0.12549,240.87,240.82,12.40866542]
[1738213408617,83.0,240.9,240.84,12.40866542]
[1738213409325,83.0,240.9,240.87,12.40866542]
[1738213409625,83.0,240.9,240.88,12.40866542]
[1738213410123,83.0,240.9,240.89,12.40866542]
[1738213410636,0.08862091,240.96,240.89,12.40866542]
[1738213410802,0.08862091,240.96,240.94,12.40866542]
[1738213411002,0.08862091,240.96,240.93,12.40866542]
[1738213411215,12.62277633,240.96,240.89,12.40866542]
[1738213411402,95.62277633,240.96,240.89,12.40866542]
[1738213411799,95.62277633,240.96,240.88,12.40866542]
[1738213411998,12.40866542,240.92,240.85,12.40866542]
[1738213412430,12.40866542,240.91,240.83,12.40866542]
[1738213413123,12.40866542,240.92,240.85,12.40866542]
[1738213413423,12.40866542,240.94,240.86,12.40866542]
[1738213413615,95.40866542,240.95,240.88,12.40866542]
[1738213413925,12.40866542,240.93,240.85,12.40866542]
[1738213414131,12.40866542,240.92,240.85,12.40866542]
[1738213414302,12.40866542,240.89,240.82,12.40866542]
[1738213414503,12.40866542,240.87,240.8,12.40866542]
[1738213414716,12.40866542,240.87,240.79,7.9274]
[1738213414717,12.40866542,240.87,240.79,20.33606542]
[1738213414911,12.40866542,240.86,240.79,7.9274]
[1738213415110,12.40866542,240.88,240.8,12.40866542]
[1738213415320,83.0,240.91,240.81,12.40866542]
[1738213415321,12.40866542,240.89,240.81,12.40866542]
[1738213415714,0.09128556,240.82,240.79,7.9274]
[1738213415913,8.556e-05,240.82,240.81,36.18554942]
[1738213416112,4.249e-05,240.83,240.82,23.776884]
[1738213416319,4.249e-05,240.83,240.82,36.80822289]
[1738213416502,3.278e-05,240.84,240.82,36.93371289]
[1738213416823,7.731e-05,240.86,240.85,20.0]
[1738213417026,7.731e-05,240.86,240.85,33.03124282]
[1738213417226,7.731e-05,240.86,240.85,32.40866542]
[1738213418530,7.731e-05,240.86,240.85,56.18554942]
[1738213418909,7.731e-05,240.86,240.85,56.31103942]
[1738213419230,7.731e-05,240.86,240.85,56.37403942]
[1738213419419,4.486e-05,240.87,240.86,23.902374]
[1738213419728,4.486e-05,240.87,240.86,36.93359374]
[1738213420225,0.10473407,240.9,240.87,1.68179]
[1738213420226,0.03093466,240.88,240.87,1.68179]
[1738213420408,0.03093466,240.88,240.87,14.09045542]
[1738213420608,0.03093466,240.88,240.87,13.96496542]
[1738213421821,0.03093466,240.88,240.87,1.5563]
[1738213422023,0.03093466,240.88,240.86,12.40866542]
[1738213422520,0.03093466,240.88,240.85,12.40866542]
[1738213422928,0.03093466,240.88,240.86,12.40866542]
[1738213423331,0.03093466,240.88,240.85,12.40866542]
[1738213424535,0.03093466,240.88,240.83,12.40866542]
[1738213425922,0.03093466,240.88,240.81,12.40866542]
[1738213425923,12.40866542,240.87,240.81,12.40866542]
[1738213426523,12.40866542,240.87,240.8,1.5703]
[1738213427424,0.03093466,240.88,240.81,12.40866542]
[1738213429238,0.03093466,240.88,240.83,12.40866542]
[1738213432039,0.03093466,240.88,240.81,12.47166542]
[1738213432216,0.06093466,240.88,240.81,12.47166542]
[1738213432720,12.40866542,240.87,240.81,0.063]
[1738213433242,12.40866542,240.85,240.81,0.063]
[1738213433448,12.40866542,240.83,240.81,0.063]
[1738213434040,12.40866542,240.85,240.81,0.063]
[1738213435457,95.40866542,240.86,240.81,0.063]
[1738213435637,0.08944057,240.84,240.83,12.40866542]
[1738213436029,0.08944057,240.84,240.81,12.47166542]
[1738213436342,0.08944057,240.84,240.83,12.40866542]
[1738213436835,0.08944057,240.84,240.83,36.18554942]
[1738213437449,0.08944057,240.84,240.83,12.40866542]
[1738213437654,12.87457599,240.84,240.81,0.063]
[1738213437851,12.40866542,240.82,240.81,0.063]
[1738213438154,0.08944057,240.84,240.81,0.063]
[1738213440853,0.08944057,240.84,240.81,12.47166542]
[1738213442750,0.08944057,240.84,240.83,12.40866542]
[1738213443162,0.08944057,240.84,240.83,36.18554942]
[1738213446942,0.08944057,240.84,240.83,50.84519484]
[1738213447155,0.08944057,240.84,240.83,51.46775844]
[1738213447478,0.08944057,240.84,240.83,51.59324844]
[1738213447654,0.08067646,240.85,240.84,48.84519484]
[1738213447982,0.00670637,240.89,240.88,20.0]
[1738213448155,0.03989007,240.91,240.89,25.596364]
[1738213448476,0.03989007,240.91,240.9,38.05892878]
[1738213448844,0.03989007,240.91,240.9,38.30990878]
[1738213449044,0.03989007,240.91,240.9,37.05892878]
[1738213450352,0.03989007,240.91,240.9,39.18441878]
[1738213450974,0.03989007,240.91,240.9,36.18554942]
[1738213451552,0.03989007,240.91,240.9,12.40866542]
[1738213451887,0.03989007,240.91,240.9,36.18554942]
[1738213452051,0.03989007,240.91,240.9,38.56201942]
[1738213453273,1.6628,241.07,240.95,1.12549]
[1738213453571,1.6628,241.07,240.97,36.18554942]
[1738213453776,0.12549,241.06,240.97,36.18554942]
[1738213454950,12.40866542,241.09,240.97,36.31103942]
[1738213455278,0.12549,241.08,240.97,23.776884]
[1738213455673,83.0,241.11,240.97,25.77567488]
[1738213455674,95.40866542,241.11,240.97,25.77567488]
[1738213455868,83.0,241.11,240.97,25.77567488]
[1738213456890,83.0,241.11,240.97,24.77567488]
[1738213457051,83.0,241.11,240.97,25.77567488]
[1738213457258,83.0,241.11,241.01,20.0]
[1738213457475,83.0,241.11,241.02,23.776884]
[1738213457661,83.0,241.11,241.06,23.776884]
[1738213457877,83.0,241.11,241.08,12.40866542]
[1738213458882,83.0,241.11,241.06,12.40866542]
[1738213459656,83.0,241.11,241.05,12.40866542]
[1738213459857,12.40866542,241.08,241.01,12.40866542]
[1738213460055,12.40866542,241.06,240.99,12.40866542]
[1738213460255,83.0,241.07,241.04,23.776884]
[1738213460456,83.0,241.07,241.06,12.40866542]
[1738213460862,83.0,241.07,240.97,0.12549]
[1738213460863,83.0,241.07,241.05,12.40866542]
[1738213461488,83.0,241.07,241.04,12.40866542]
[1738213461866,83.0,241.07,241.05,12.40866542]
[1738213462174,83.0,241.07,241.06,36.18554942]
[1738213462693,0.03,241.13,241.07,23.776884]
[1738213462864,0.03,241.13,241.12,12.40866542]
[1738213463470,0.03,241.13,241.12,36.18554942]
[1738213464691,0.03,241.13,241.12,12.40866542]
[1738213466684,0.03,241.13,241.12,36.31103942]
[1738213466879,0.03,241.13,241.12,36.56201942]
[1738213467588,0.03,241.13,241.12,37.18386127]
[1738213467778,0.03,241.13,241.12,36.80739127]
[1738213468780,0.03,241.13,241.12,39.68739127]
[1738213468985,0.03,241.13,241.12,40.06386127]
[1738213469587,0.03,241.13,241.12,36.18554942]
[1738213469905,12.43866542,241.13,241.04,12.40866542]
[1738213470202,12.40866542,241.09,241.02,12.40866542]
[1738213470506,12.40866542,241.09,241.0,12.40866542]
[1738213470672,83.0,241.12,241.04,12.40866542]
[1738213470869,83.0,241.12,241.06,12.40866542]
[1738213472495,83.0,241.12,241.04,12.40866542]
[1738213472902,83.0,241.12,241.06,12.40866542]
[1738213474801,83.0,241.12,241.08,12.40866542]
[1738213475098,0.03,241.13,241.08,12.40866542]
[1738213475594,0.03,241.13,241.1,12.40866542]
[1738213476106,0.03,241.13,241.12,12.40866542]
[1738213477678,0.03,241.13,241.12,36.18554942]
[1738213477982,0.03,241.13,241.12,12.40866542]
[1738213479606,20.0,241.09,240.95,12.40866542]
[1738213479806,12.40866542,241.01,240.91,12.40866542]
[1738213480030,12.40866542,241.01,240.98,0.063]
[1738213480303,12.40866542,240.99,240.98,0.063]
[1738213480504,12.53415542,240.99,240.98,0.063]
[1738213480797,12.40866542,240.99,240.98,0.063]
[1738213481500,12.53415542,240.99,240.98,0.063]
[1738213481881,12.40866542,241.01,240.98,0.063]
[1738213482806,19.85389397,241.01,240.98,0.063]
[1738213483605,19.97938397,241.03,240.98,0.063]
[1738213483917,19.85389397,241.07,241.0,19.85389397]
[1738213484285,0.12549,241.06,240.98,19.91689397]
[1738213484792,83.0,241.05,240.98,19.91689397]
[1738213484996,19.85389397,241.11,241.03,19.85389397]
[1738213485193,83.0,241.12,241.05,19.85389397]
[1738213485509,83.0,241.12,241.07,19.85389397]
[1738213485685,0.03,241.13,241.07,19.85389397]
[1738213486183,0.03,241.13,241.09,19.85389397]
[1738213486401,0.03,241.13,241.11,19.85389397]
[1738213487290,0.03,241.13,241.09,19.85389397]
[1738213488903,0.03,241.13,241.11,19.85389397]
[1738213489708,0.03,241.13,241.09,19.85389397]
[1738213490180,0.03,241.13,241.07,19.85389397]
[1738213490895,19.88389397,241.13,241.05,19.85389397]
[1738213491082,83.0,241.12,241.05,19.85389397]
[1738213491985,19.85389397,241.11,241.03,19.85389397]
[1738213492416,19.85389397,241.08,241.03,20.0]
[1738213493406,19.85389397,241.08,241.0,19.85389397]
[1738213493605,19.85389397,241.1,241.0,19.85389397]
[1738213494712,19.85389397,241.1,241.02,19.85389397]
[1738213494910,19.85389397,241.1,241.04,19.85389397]
[1738213495108,102.97938397,241.12,241.04,19.85389397]
[1738213495417,19.85389397,241.1,241.02,19.85389397]
[1738213495913,19.85389397,241.05,240.98,0.063]
[1738213497089,19.85389397,241.09,241.01,19.85389397]
[1738213497486,19.85389397,241.11,241.03,19.85389397]
[1738213500511,83.0,241.12,241.05,19.85389397]
[1738213502016,83.0,241.11,241.05,19.85389397]
[1738213503397,83.03,241.11,241.05,19.85389397]
[1738213504006,0.03,241.11,241.09,19.85389397]
[1738213504514,0.03,241.11,241.07,23.776884]
[1738213504719,0.03,241.11,241.1,12.38832521]
[1738213504898,0.03,241.11,241.1,36.16520921]
[1738213506616,0.03,241.11,241.1,12.38832521]
[1738213507231,0.03,241.11,241.1,14.38672031]
[1738213507419,0.03,241.13,241.12,45.153354]
[1738213507729,0.03,241.13,241.12,58.1634782]
[1738213507906,0.03,241.13,241.12,56.9124982]
[1738213508111,0.03,241.13,241.12,56.7870082]
[1738213508405,0.03,241.13,241.12,56.16520921]
[1738213508596,0.03,241.13,241.12,63.59385974]
[1738213509205,0.03,241.13,241.11,19.81697574]
[1738213509405,0.03,241.13,241.12,43.59385974]
[1738213510518,0.03,241.13,241.12,43.71934974]
[1738213511101,0.03,241.13,241.12,43.97032974]
[1738213511303,0.03,241.13,241.12,43.71934974]
[1738213512609,0.03,241.13,241.12,44.341198]
[1738213513427,0.03,241.16,241.12,44.341198]
[1738213513428,0.03,241.16,241.15,0.12549]
[1738213513609,0.03,241.16,241.15,44.466572]
[1738213514313,0.03,241.16,241.15,45.466572]
[1738213514512,0.03,241.23,241.2,0.12549]
[1738213514828,0.03,241.23,241.22,43.97032974]
[1738213515423,0.03,241.23,241.22,44.97032974]
[1738213515612,0.03,241.23,241.22,43.71934974]
[1738213517624,0.03,241.23,241.22,43.97032974]
[1738213521850,0.03,241.23,241.22,43.71934974]
[1738213523031,0.03,241.23,241.22,43.97032974]
[1738213523849,0.03,241.23,241.22,44.09581974]
[1738213524222,0.03,241.23,241.22,43.97032974]
[1738213525025,0.03,241.23,241.22,19.81697574]
[1738213525867,0.03,241.23,241.22,43.59385974]
[1738213526031,0.03,241.23,241.22,19.81697574]
[1738213527463,0.03,241.23,241.21,19.81697574]
[1738213528463,0.03,241.23,241.22,19.81697574]
[1738213528769,0.03,241.23,241.22,12.37813629]
[1738213534454,12.40813629,241.23,241.16,12.44113629]
[1738213534637,12.37813629,241.2,241.16,0.063]
[1738213535747,12.37813629,241.18,241.16,0.063]
[1738213538746,83.0,241.17,241.16,0.063]
[1738213538952,12.75460629,241.17,241.16,0.063]
[1738213541869,12.50362629,241.17,241.16,0.063]
[1738213544059,12.37813629,241.17,241.16,0.063]
[1738213547750,12.37813629,241.19,241.16,0.063]
[1738213547951,83.0,241.21,241.16,0.063]
[1738213548175,1.5465,241.22,241.16,0.063]
[1738213548572,12.37813629,241.19,241.16,0.063]
[1738213549286,12.37813629,241.18,241.16,0.063]
[1738213549985,12.37813629,241.2,241.16,0.063]
[1738213550355,20.0,241.18,241.16,0.063]
[1738213550776,12.37813629,241.2,241.16,0.063]
[1738213551075,13.92463629,241.22,241.16,0.063]
[1738213551256,12.37813629,241.21,241.16,0.063]
[1738213551880,12.40813629,241.23,241.16,12.44113629]
[1738213552065,0.03,241.23,241.18,12.37813629]
[1738213552259,0.03,241.23,241.19,12.37813629]
[1738213552452,0.03,241.23,241.18,12.37813629]
[1738213552973,0.03,241.19,241.16,0.063]
[1738213553185,0.03,241.19,241.18,12.37813629]
[1738213554963,0.03,241.19,241.18,36.15502029]
[1738213555477,0.03,241.19,241.16,0.063]
[1738213555478,0.03,241.19,241.17,12.37813629]
[1738213556882,0.03,241.19,241.18,12.37813629]
[1738213560576,0.03,241.19,241.18,12.50362629]
[1738213560885,0.03,241.23,241.22,20.12549]
[1738213561088,0.03,241.23,241.22,56.9020879]
[1738213561264,0.03,241.23,241.22,56.7765979]
[1738213561467,0.03,241.23,241.22,56.15502029]
[1738213562078,0.03,241.23,241.22,36.15502029]
[1738213562382,0.03,241.23,241.18,12.37813629]
[1738213562767,0.03,241.23,241.19,23.776884]
[1738213562982,0.03,241.23,241.2,12.37813629]
[1738213563171,0.03,241.23,241.22,12.37813629]
[1738213563361,0.03,241.23,241.22,36.15502029]
[1738213563562,0.03,241.23,241.22,36.28051029]
[1738213563770,0.03,241.23,241.22,36.90209509]
[1738213564483,0.03,241.32,241.27,23.776884]
[1738213564667,0.03,241.32,241.31,12.37813629]
[1738213565074,0.03,241.32,241.31,36.15502029]
[1738213565584,0.03,241.32,241.31,36.28051029]
[1738213566667,0.03,241.32,241.31,48.90962658]
[1738213566864,0.03,241.33,241.32,24.027864]
[1738213567071,0.03,241.36,241.35,44.027864]
[1738213567293,0.03,241.36,241.35,57.02722076]
[1738213567685,0.03,241.36,241.35,56.77624076]
[1738213567886,0.03,241.36,241.35,56.15502029]
[1738213568188,0.03,241.36,241.35,56.77632069]
[1738213568685,0.03,241.36,241.35,64.17583301]
[1738213569265,0.03,241.36,241.35,63.55453261]
[1738213572079,0.03,241.36,241.35,63.93100261]
[1738213572391,0.03,241.38,241.37,0.12549]
[1738213572592,0.03,241.38,241.37,44.30119506]
[1738213572784,0.03,241.38,241.37,43.55453261]
[1738213575198,0.03,241.38,241.37,43.68002261]
[1738213575398,0.03,241.38,241.37,44.30121288]
[1738213576292,0.03,241.38,241.37,45.55219288]
[1738213577192,0.03,241.38,241.37,45.67768288]
[1738213578378,0.03,241.38,241.34,19.77764861]
[1738213578697,19.80764861,241.38,241.29,19.77764861]
[1738213578882,0.03,241.38,241.37,19.77764861]
[1738213579085,0.03,241.38,241.34,19.77764861]
[1738213579398,19.77764861,241.37,241.21,8.9962]
[1738213579597,19.77764861,241.37,241.28,19.77764861]
[1738213579802,0.03,241.38,241.32,19.77764861]
[1738213579990,0.03,241.38,241.36,19.77764861]
[1738213580403,0.03,241.38,241.34,23.776884]
[1738213583412,0.03,241.38,241.36,23.776884]
[1738213584214,0.03,241.38,241.37,43.68002261]
[1738213584382,0.03,241.38,241.37,43.55453261]
[1738213586890,0.03,241.38,241.37,23.776884]
[1738213587287,0.03,241.38,241.37,43.68002261]
[1738213587998,0.03,241.38,241.37,43.55453261]
[1738213588917,0.03,241.38,241.37,23.776884]
[1738213589103,0.03,241.38,241.37,23.839884]
[1738213589301,0.03,241.38,241.37,0.063]
[1738213591111,0.03,241.38,241.37,23.839884]
[1738213591423,0.03,241.38,241.37,23.965374]
[1738213592616,0.03,241.38,241.37,43.74446113]
[1738213593602,0.03,241.38,241.37,23.839884]
[1738213595225,0.03,241.38,241.37,0.063]
[1738213595390,0.03,241.38,241.37,19.84208713]
[1738213596334,0.03,241.38,241.37,0.063]
[1738213596801,0.03,241.38,241.37,20.063]
[1738213601437,0.03,241.38,241.37,0.063]
[1738213601838,0.03,241.38,241.37,20.063]
[1738213602921,0.03,241.38,241.37,43.839884]
[1738213605141,0.03,241.38,241.37,63.74446113]
[1738213606946,0.03,241.38,241.37,43.839884]
[1738213609145,0.03,241.38,241.37,43.965374]
[1738213609352,0.03,241.38,241.37,65.61668312]
[1738213609528,0.03,241.38,241.37,65.74217312]
[1738213609847,0.03,241.38,241.37,63.61897113]
[1738213610750,0.03,241.38,241.37,63.74446113]
[1738213611045,0.03,241.38,241.37,20.063]
[1738213611252,0.03,241.38,241.37,0.063]
[1738213611745,0.03,241.38,241.37,43.61897113]
[1738213611950,0.03,241.38,241.37,43.74446113]
[1738213612447,0.03,241.38,241.37,44.61664939]
[1738213612656,0.03,241.38,241.37,37.19709626]
[1738213613457,0.03,241.38,241.37,36.575888]
[1738213615050,0.03,241.38,241.37,36.324908]
[1738213615876,0.03,241.38,241.37,0.063]
[1738213616536,0.03,241.38,241.37,12.422534]
[1738213616848,0.03,241.38,241.37,36.324908]
[1738213617057,0.03,241.38,241.37,36.575888]
[1738213618034,0.03,241.38,241.37,36.324908]
[1738213618233,0.03,241.38,241.37,23.839884]
[1738213619938,0.03,241.38,241.37,23.965374]
[1738213620156,0.03,241.38,241.37,36.324908]
[1738213620856,0.03,241.38,241.37,23.839884]
[1738213623669,0.03,241.38,241.37,36.575888]
[1738213625978,0.03,241.38,241.37,36.324908]
[1738213626960,0.03,241.38,241.37,36.575888]
[1738213627878,0.03,241.38,241.37,36.324908]
[1738213630255,0.03,241.38,241.37,36.575888]
[1738213630579,0.03,241.38,241.37,37.701378]
[1738213631159,0.03,241.38,241.37,36.701378]
[1738213631476,0.03,241.38,241.37,36.575888]
[1738213631684,0.03,241.38,241.37,36.324908]
[1738213632058,0.03,241.38,241.37,23.965374]
[1738213632471,0.03,241.38,241.37,24.58662455]
[1738213632663,0.03,241.38,241.37,36.94615855]
[1738213633476,0.03,241.38,241.37,23.965374]
[1738213633666,0.03,241.38,241.37,26.845374]
[1738213634069,0.03,241.38,241.37,39.8261425]
[1738213635282,0.03,241.38,241.37,40.0771225]
[1738213635978,0.03,241.38,241.37,40.2026125]
[1738213636570,0.03,241.38,241.37,36.9461425]
[1738213636878,0.03,241.38,241.37,39.8261425]
[1738213638180,0.03,241.38,241.37,26.719884]
[1738213640177,0.03,241.38,241.37,23.839884]
[1738213647497,0.03,241.38,241.37,23.965374]
[1738213647671,0.03,241.38,241.37,24.83761161]
[1738213648002,0.03,241.38,241.37,23.965374]
[1738213648175,0.03,241.38,241.37,23.839884]
[1738213652676,0.03,241.38,241.37,31.75223197]
[1738213653718,0.03,241.38,241.37,23.839884]
[1738213654079,0.03,241.38,241.37,31.75223197]
[1738213662411,0.03,241.38,241.37,31.87772197]
[1738213663515,0.03,241.38,241.37,32.4989491]
[1738213663821,0.03,241.38,241.37,32.7499291]
[1738213664518,0.03,241.38,241.37,32.8754191]
[1738213664885,0.03,241.38,241.37,32.7499291]
[1738213665613,0.03,241.38,241.37,32.4989491]
[1738213665818,0.03,241.38,241.37,31.87772197]
[1738213671524,0.03,241.38,241.37,32.43584372]
[1738213674915,0.03,241.38,241.37,33.30805516]
[1738213675831,0.03,241.38,241.37,32.68682372]
[1738213680720,0.03,241.38,241.37,32.43584372]
[1738213682020,0.03,241.38,241.37,32.68682372]
[1738213682223,0.03,241.38,241.37,32.81231372]
[1738213682404,0.03,241.38,241.37,33.43342196]
[1738213683524,0.03,241.44,241.39,1.0]
[1738213683729,0.03,241.44,241.43,32.06570197]
[1738213684033,0.03,241.44,241.43,32.68671858]
[1738213684226,0.03,241.44,241.43,32.43573858]
[1738213684420,0.03,241.44,241.43,32.31024858]
[1738213686030,0.03,241.44,241.43,32.43573858]
[1738213688119,0.03,241.44,241.43,24.52339061]
[1738213688939,0.03,241.44,241.43,23.902374]
[1738213690517,0.03,241.44,241.42,0.55800616]
[1738213690724,7.94234797,241.44,241.42,0.55800616]
[1738213691033,39.59173985,241.44,241.42,0.55800616]
[1738213691413,7.94234797,241.44,241.42,0.55800616]
[1738213699241,0.03,241.44,241.43,23.776884]
[1738213705454,0.03,241.44,241.42,0.55800616]